bitfinex-derivatives/quotes_SOLF0:USTF0_20250101
["timestamp","ask_amount","ask_price","bid_price","bid_amount"]
[1735723522820,14.84,188.48,188.45,7.78211767]
[1735723524221,14.84,188.48,188.37,3.42]
[1735723524421,14.84,188.48,188.44,7.78211767]
[1735723525424,14.84,188.48,188.46,2.6579]
[1735723525826,14.84,188.48,188.46,10.44001767]
[1735723526021,14.84,188.48,188.47,2.6578]
[1735723526522,14.84,188.48,188.46,7.78211767]
[1735723527319,14.84,188.48,188.46,10.43991767]
[1735723527524,14.84,188.48,188.43,3.42]
[1735723527726,14.84,188.48,188.44,7.78211767]
[1735723528329,14.84,188.48,188.45,2.658]
[1735723529230,14.84,188.48,188.46,7.78211767]
[1735723531530,14.84,188.48,188.46,10.44001767]
[1735723533628,14.84,188.48,188.46,7.78211767]
[1735723533831,14.84,188.48,188.47,2.6578]
[1735723538739,1.5807,188.65,188.46,7.78211767]
[1735723538930,7.78211767,188.59,188.52,7.78211767]
[1735723539236,3.1092,188.58,188.52,7.78211767]
[1735723539536,7.78211767,188.55,188.44,23.23032025]
[1735723539735,7.78211767,188.55,188.49,7.78211767]
[1735723539940,20.62211767,188.55,188.44,23.23032025]
[1735723540237,7.78211767,188.53,188.47,7.78211767]
[1735723540635,7.78211767,188.53,188.47,10.43981767]
[1735723542333,7.78211767,188.53,188.48,2.6576]
[1735723543441,7.78211767,188.51,188.47,2.6578]
[1735723545033,7.78211767,188.51,188.46,7.78211767]
[1735723545235,3.184,188.52,188.48,2.6576]
[1735723545938,3.184,188.52,188.48,2.6577]
[1735723548733,3.184,188.52,188.46,2.6578]
[1735723549431,7.78211767,188.49,188.43,2.6582]
[1735723549941,7.78211767,188.49,188.43,10.44031767]
[1735723550136,1.5468,188.5,188.44,2.6582]
[1735723552040,4.8968,188.5,188.44,10.44031767]
[1735723553042,11.3768,188.5,188.44,10.44031767]
[1735723554943,7.78211767,188.49,188.37,3.38]
[1735723555142,7.78211767,188.49,188.41,7.78211767]
[1735723555644,7.78211767,188.47,188.36,23.24020377]
[1735723555844,7.78211767,188.47,188.39,7.78211767]
[1735723556142,7.78211767,188.46,188.39,7.78211767]
[1735723556341,1.581,188.45,188.4,2.6588]
[1735723556543,3.1061,188.45,188.39,7.78211767]
[1735723556845,7.78211767,188.44,188.38,2.6589]
[1735723557747,7.78211767,188.42,188.36,2.6592]
[1735723560551,1.5613,188.44,188.37,10.44131767]
[1735723560746,1.5613,188.44,188.41,7.78211767]
[1735723561451,1.5613,188.44,188.39,7.78211767]
[1735723562645,1.5613,188.44,188.34,3.34]
[1735723562851,1.5613,188.44,188.39,7.78211767]
[1735723563944,1.5613,188.44,188.37,10.44131767]
[1735723564251,7.78211767,188.43,188.37,7.78211767]
[1735723564446,7.78211767,188.41,188.35,7.78211767]
[1735723565650,7.78211767,188.41,188.35,10.44161767]
[1735723566449,3.34,188.4,188.35,10.44161767]
[1735723566846,3.34,188.4,188.33,7.78211767]
[1735723567052,3.34,188.4,188.35,7.78211767]
[1735723567644,3.34,188.4,188.28,4.9788]
[1735723567854,7.78211767,188.39,188.22,7.3472629]
[1735723568053,7.78211767,188.39,188.31,7.78211767]
[1735723568253,3.106,188.38,188.31,7.78211767]
[1735723568655,9.39181767,188.37,188.31,7.78211767]
[1735723570557,9.39181767,188.37,188.33,2.6597]
[1735723572265,9.39181767,188.37,188.31,10.44201767]
[1735723573862,9.39181767,188.37,188.31,2.6599]
[1735723574564,1.6097,188.37,188.29,7.78211767]
[1735723574766,7.78211767,188.35,188.3,2.6602]
[1735723576069,1.6097,188.37,188.31,7.78211767]
[1735723576571,1.6097,188.37,188.25,3.34]
[1735723576967,3.106,188.38,188.32,7.78211767]
[1735723577271,3.106,188.38,188.34,7.78211767]
[1735723577767,3.106,188.38,188.36,2.6593]
[1735723578569,7.78211767,188.42,188.38,2.6591]
[1735723578767,2.54504256,188.43,188.38,2.6591]
[1735723578969,2.54504256,188.43,188.36,7.78211767]
[1735723579273,5.89504256,188.43,188.36,7.78211767]
[1735723579863,5.89504256,188.43,188.38,2.6591]
[1735723580472,5.89504256,188.43,188.39,2.6588]
[1735723580869,5.89504256,188.43,188.38,7.78211767]
[1735723581073,5.89504256,188.43,188.4,7.78211767]
[1735723581271,3.35,188.43,188.4,7.78211767]
[1735723581672,3.35,188.43,188.36,3.34]
[1735723582073,3.35,188.43,188.38,7.78211767]
[1735723582276,3.35,188.43,188.37,2.6592]
[1735723582475,7.78211767,188.4,188.34,7.78211767]
[1735723583273,15.37211767,188.4,188.34,7.78211767]
[1735723585371,15.37211767,188.4,188.33,2.6597]
[1735723585671,15.37211767,188.4,188.34,2.6596]
[1735723585878,7.78211767,188.38,188.29,3.34]
[1735723586170,7.59,188.4,188.34,2.6596]
[1735723586171,15.37211767,188.4,188.34,2.6596]
[1735723588170,7.59,188.4,188.26,1.5707]
[1735723588374,7.78211767,188.36,188.26,1.5707]
[1735723588578,7.78211767,188.36,188.28,7.78211767]
[1735723588775,7.78211767,188.36,188.29,7.78211767]
[1735723588978,3.34,188.39,188.29,7.78211767]
[1735723589280,7.78211767,188.37,188.29,7.78211767]
[1735723589468,7.78211767,188.37,188.31,7.78211767]
[1735723589672,7.78211767,188.37,188.26,1.5707]
[1735723589874,11.12211767,188.39,188.26,1.5707]
[1735723590078,11.12211767,188.39,188.33,7.78211767]
[1735723590275,7.78211767,188.34,188.21,29.38905161]
[1735723590573,7.78211767,188.34,188.24,7.78211767]
[1735723590574,7.78211767,188.31,188.24,7.78211767]
[1735723590768,3.34,188.34,188.26,7.78211767]
[1735723590972,10.92521767,188.33,188.26,7.78211767]
[1735723591171,3.1431,188.33,188.25,2.6609]
[1735723591376,7.78211767,188.37,188.29,7.78211767]
[1735723591568,3.35,188.37,188.31,7.78211767]
[1735723592181,3.35,188.37,188.35,7.78211767]
[1735723592676,3.35,188.37,188.35,10.44161767]
[1735723593475,0.8842,188.37,188.36,2.6594]
[1735723594479,0.8842,188.37,188.36,14.85273395]
[1735723595469,0.8842,188.37,188.36,2.6594]
[1735723600481,9.7742,188.37,188.36,2.6594]
[1735723602071,3.1431,188.46,188.42,2.6585]
[1735723602269,16.18351991,188.51,188.39,12.19333395]
[1735723602580,25.26451675,188.51,188.39,15.71333395]
[1735723602775,15.29473395,188.51,188.39,12.19333395]
[1735723602980,19.28418074,188.51,188.39,12.19333395]
[1735723603278,25.24473395,188.51,188.36,15.71333395]
[1735723603676,3.98964729,188.5,188.36,15.71333395]
[1735723604077,13.95736615,188.5,188.36,15.71333395]
[1735723604276,12.19333395,188.48,188.36,15.71333395]
[1735723604980,12.19333395,188.48,188.38,2.6589]
[1735723605279,1.5304,188.47,188.36,15.71333395]
[1735723605681,1.5304,188.47,188.4,2.6587]
[1735723607078,1.5304,188.47,188.42,2.6585]
[1735723607680,1.5304,188.47,188.43,2.6584]
[1735723607882,9.96474212,188.5,188.39,12.19333395]
[1735723608082,28.76473395,188.51,188.39,12.19333395]
[1735723608282,25.24473395,188.51,188.39,12.19333395]
[1735723608585,25.24473395,188.51,188.36,3.52]
[1735723608780,25.24473395,188.51,188.39,12.19333395]
[1735723610181,9.95,188.51,188.42,12.19333395]
[1735723610383,9.95,188.51,188.43,3.52]
[1735723610984,9.95,188.51,188.45,12.19333395]
[1735723611184,9.95,188.51,188.43,3.52]
[1735723611185,9.95,188.51,188.44,12.19333395]
[1735723611683,9.95,188.51,188.5,2.6574]
[1735723613080,9.95,188.51,188.47,12.19333395]
[1735723613282,9.95,188.51,188.46,2.6579]
[1735723613481,9.95,188.51,188.41,15.71333395]
[1735723614488,9.95,188.51,188.44,2.6582]
[1735723615887,9.95,188.51,188.41,15.71333395]
[1735723617089,9.95,188.51,188.44,12.19333395]
[1735723617585,9.95,188.51,188.49,2.6575]
[1735723618991,9.95,188.51,188.41,3.52]
[1735723619291,9.95,188.51,188.41,15.71333395]
[1735723620483,9.95,188.51,188.46,2.6579]
[1735723620687,9.95,188.51,188.41,15.71333395]
[1735723622493,3.1457,188.5,188.44,2.6581]
[1735723623098,3.1457,188.5,188.43,2.6583]
[1735723623287,4.6652,188.5,188.43,2.6583]
[1735723623484,4.6652,188.5,188.4,12.19333395]
[1735723623689,4.6652,188.5,188.41,2.6585]
[1735723624787,4.6652,188.5,188.42,2.6585]
[1735723625183,4.6652,188.5,188.4,12.19333395]
[1735723625792,4.6652,188.5,188.43,2.6584]
[1735723625994,12.19333395,188.49,188.37,15.87333395]
[1735723626291,12.19333395,188.49,188.39,2.6588]
[1735723626483,12.19333395,188.49,188.37,12.19333395]
[1735723627491,12.19333395,188.49,188.37,15.87333395]
[1735723627793,12.19333395,188.49,188.42,2.6584]
[1735723628992,12.19333395,188.49,188.43,2.6583]
[1735723629189,12.19333395,188.49,188.37,15.87333395]
[1735723629395,4.6652,188.5,188.37,15.87333395]
[1735723629699,8.66,188.49,188.4,12.19333395]
[1735723630294,8.66,188.49,188.46,2.6579]
[1735723631090,8.66,188.49,188.43,15.87333395]
[1735723631595,8.66,188.49,188.48,2.6577]
[1735723632496,1.4832,188.57,188.46,24.3866679]
[1735723632790,1.4832,188.57,188.51,12.19333395]
[1735723633187,1.4832,188.57,188.52,2.657]
[1735723633394,3.2294,188.6,188.51,12.19333395]
[1735723633894,3.2294,188.6,188.5,3.68]
[1735723633895,13.0494,188.6,188.54,2.6567]
[1735723636693,13.0494,188.6,188.53,12.19333395]
[1735723638499,13.0494,188.6,188.56,2.6564]
[1735723638699,13.0494,188.6,188.53,12.19333395]
[1735723639302,13.0494,188.6,188.55,2.6567]
[1735723639503,13.0494,188.6,188.53,12.19333395]
[1735723639796,9.82,188.6,188.53,12.19333395]
[1735723640001,9.82,188.6,188.59,2.6561]
[1735723641592,9.82,188.6,188.59,14.84943395]
[1735723641793,13.67323395,188.73,188.64,2.6554]
[1735723641993,1.4937,188.71,188.59,12.19333395]
[1735723642902,1.4937,188.71,188.6,3.68]
[1735723643096,10.0337,188.71,188.6,3.68]
[1735723643296,10.0337,188.71,188.62,12.19333395]
[1735723643499,10.0337,188.71,188.63,2.6555]
[1735723644404,10.0337,188.71,188.61,2.6557]
[1735723644909,10.0337,188.71,188.6,3.68]
[1735723646407,10.0337,188.71,188.62,2.6557]
[1735723647001,10.0337,188.71,188.6,3.68]
[1735723648604,10.0337,188.71,188.63,2.6555]
[1735723649401,12.19333395,188.7,188.61,2.6558]
[1735723650306,12.19333395,188.7,188.62,2.6557]
[1735723652107,12.19333395,188.7,188.6,2.6558]
[1735723652307,12.19333395,188.7,188.57,3.78]
[1735723652708,12.19333395,188.7,188.6,2.6559]
[1735723652910,12.19333395,188.7,188.56,12.19333395]
[1735723653111,12.19333395,188.66,188.54,3.78]
[1735723653306,1.5276,188.65,188.52,26.37682843]
[1735723653510,12.19333395,188.6,188.49,3.78]
[1735723653705,1.5498,188.59,188.44,7.3472629]
[1735723653907,12.19333395,188.57,188.49,2.6574]
[1735723654110,3.0223,188.56,188.49,2.6574]
[1735723654302,3.0223,188.56,188.45,3.78]
[1735723654608,3.0223,188.56,188.48,2.6576]
[1735723655208,3.0223,188.56,188.47,2.6578]
[1735723656503,3.0223,188.56,188.48,2.6576]
[1735723656814,3.0223,188.56,188.44,3.78]
[1735723657514,3.0223,188.56,188.47,2.6577]
[1735723657713,3.0223,188.56,188.44,3.78]
[1735723658615,3.0223,188.56,188.45,12.19333395]
[1735723658913,3.0223,188.56,188.48,2.6576]
[1735723659110,3.0223,188.56,188.45,12.19333395]
[1735723659816,3.0223,188.56,188.5,2.6573]
[1735723660308,3.0223,188.56,188.4,23.81162616]
[1735723660515,12.19333395,188.53,188.38,12.19333395]
[1735723661312,2.6573,188.51,188.42,2.6584]
[1735723661508,1.5858,188.5,188.4,3.78]
[1735723662015,2.6577,188.48,188.41,2.6585]
[1735723662222,1.5994,188.47,188.41,2.6585]
[1735723662415,1.5994,188.47,188.4,3.78]
[1735723662918,1.5994,188.47,188.38,12.19333395]
[1735723662919,13.79273395,188.47,188.35,12.19333395]
[1735723663117,13.79273395,188.47,188.35,15.97333395]
[1735723663319,13.79273395,188.47,188.35,12.19333395]
[1735723663815,16.45063395,188.47,188.39,2.6589]
[1735723664415,16.45063395,188.47,188.4,2.6587]
[1735723664815,13.79273395,188.47,188.35,12.19333395]
[1735723665016,1.5994,188.47,188.35,12.19333395]
[1735723665216,1.5994,188.47,188.38,12.19333395]
[1735723665517,1.5994,188.47,188.42,2.6585]
[1735723668520,4.2572,188.47,188.42,2.6585]
[1735723668720,1.5994,188.47,188.42,2.6585]
[1735723668919,1.5994,188.47,188.38,12.19333395]
[1735723669119,1.5994,188.47,188.43,2.6584]
[1735723673121,11.3194,188.47,188.43,2.6584]
[1735723673624,11.3194,188.47,188.45,2.6581]
[1735723674227,11.3194,188.47,188.46,2.6579]
[1735723674421,9.72,188.47,188.46,2.6579]
[1735723679328,9.72,188.47,188.4,3.78]
[1735723679522,9.72,188.47,188.44,2.6582]
[1735723680725,9.72,188.47,188.4,2.6587]
[1735723680929,9.72,188.47,188.38,15.97333395]
[1735723681523,9.72,188.47,188.4,2.6587]
[1735723681726,9.72,188.47,188.35,12.19333395]
[1735723681923,21.91333395,188.47,188.35,12.19333395]
[1735723682226,2.6582,188.45,188.36,3.64]
[1735723682730,12.19333395,188.44,188.32,1.6417]
[1735723682925,1.4937,188.43,188.32,3.64]
[1735723683228,12.19333395,188.41,188.32,3.64]
[1735723683622,12.19333395,188.41,188.34,2.6596]
[1735723684526,2.659,188.39,188.33,2.6598]
[1735723685130,2.659,188.39,188.34,2.6596]
[1735723685532,14.85213395,188.41,188.3,3.64]
[1735723686028,14.85213395,188.41,188.33,2.6597]
[1735723686234,14.85213395,188.41,188.3,3.64]
[1735723686534,12.19333395,188.41,188.27,16.45486268]
[1735723686731,12.19333395,188.41,188.28,3.64]
[1735723687032,2.6589,188.39,188.28,3.64]
[1735723687330,11.6989,188.39,188.28,3.64]
[1735723688441,11.6989,188.39,188.33,2.6597]
[1735723688736,9.04,188.39,188.28,3.64]
[1735723689037,9.04,188.39,188.31,2.66]
[1735723689231,9.04,188.39,188.28,3.64]
[1735723690438,9.04,188.39,188.3,12.19333395]
[1735723691238,9.04,188.39,188.32,2.6598]
[1735723691435,9.04,188.39,188.3,12.19333395]
[1735723693040,9.04,188.39,188.37,2.6592]
[1735723693244,9.04,188.39,188.28,3.64]
[1735723693442,9.04,188.39,188.29,12.19333395]
[1735723695142,9.04,188.39,188.37,2.6591]
[1735723695336,9.04,188.39,188.32,12.19333395]
[1735723696040,9.04,188.39,188.38,2.6591]
[1735723706654,6.5732,188.39,188.38,10.46592229]
[1735723706853,9.39162229,188.47,188.38,7.80682229]
[1735723707052,9.39162229,188.47,188.43,2.6583]
[1735723707650,9.39162229,188.47,188.4,7.80682229]
[1735723707854,10.46492229,188.45,188.38,11.44682229]
[1735723709560,10.46492229,188.45,188.4,2.6588]
[1735723710552,18.21492229,188.45,188.4,2.6588]
[1735723711154,10.46522229,188.43,188.37,2.6592]
[1735723711558,7.80682229,188.41,188.37,2.6592]
[1735723712251,7.80682229,188.41,188.36,2.6594]
[1735723712453,7.80682229,188.39,188.35,3.5]
[1735723712654,7.80682229,188.39,188.32,7.80682229]
[1735723713055,7.80682229,188.39,188.35,2.6594]
[1735723713256,7.80682229,188.39,188.32,7.80682229]
[1735723714561,1.5205,188.4,188.36,2.6593]
[1735723715563,1.5205,188.4,188.34,7.80682229]
[1735723715752,1.5205,188.4,188.38,2.6591]
[1735723715956,1.5205,188.4,188.34,7.80682229]
[1735723716662,1.5205,188.4,188.37,2.6591]
[1735723717357,1.5205,188.4,188.36,7.80682229]
[1735723717558,1.4956,188.42,188.36,7.80682229]
[1735723718162,1.4956,188.42,188.38,7.80682229]
[1735723718565,1.4956,188.42,188.41,2.6586]
[1735723723769,1.4956,188.42,188.38,7.80682229]
[1735723724367,1.4956,188.42,188.41,2.6586]
[1735723724574,1.4956,188.42,188.38,7.80682229]
[1735723725472,1.4956,188.42,188.4,2.6587]
[1735723726075,1.4956,188.42,188.39,2.6589]
[1735723729573,1.4956,188.42,188.38,7.80682229]
[1735723729775,1.4956,188.42,188.4,2.6587]
[1735723730870,1.4956,188.42,188.38,7.80682229]
[1735723731068,1.5932,188.44,188.38,7.80682229]
[1735723732470,1.5932,188.44,188.41,2.6586]
[1735723733476,4.2516,188.44,188.38,2.659]
[1735723733675,1.5413,188.43,188.38,2.659]
[1735723734076,1.5413,188.43,188.39,2.6589]
[1735723734774,9.2913,188.43,188.39,2.6589]
[1735723734977,9.2913,188.43,188.37,7.80682229]
[1735723735177,9.2913,188.43,188.42,2.6585]
[1735723735475,9.2913,188.43,188.39,7.80682229]
[1735723735677,9.2913,188.43,188.4,2.6587]
[1735723738878,11.9497,188.43,188.37,2.6592]
[1735723741282,11.9497,188.43,188.38,2.659]
[1735723741683,9.2913,188.43,188.38,2.659]
[1735723742883,9.2913,188.43,188.4,2.6587]
[1735723743586,9.2913,188.43,188.39,2.6589]
[1735723744085,9.2913,188.43,188.38,2.659]
[1735723744279,2.6585,188.42,188.31,7.3472629]
[1735723744483,7.80682229,188.42,188.33,7.80682229]
[1735723744686,1.5923,188.41,188.33,7.80682229]
[1735723744988,10.46562229,188.4,188.35,2.6594]
[1735723745286,7.80682229,188.4,188.35,2.6594]
[1735723747283,10.46562229,188.4,188.34,2.6596]
[1735723748975,7.80682229,188.4,188.33,7.80682229]
[1735723749378,7.80682229,188.38,188.29,22.69584346]
[1735723749580,7.80682229,188.36,188.3,7.80682229]
[1735723750591,7.80682229,188.36,188.29,2.6602]
[1735723750793,7.80682229,188.36,188.3,7.80682229]
[1735723751186,7.80682229,188.36,188.3,10.46702229]
[1735723751890,10.46602229,188.37,188.3,10.46702229]
[1735723752091,7.80682229,188.37,188.3,2.6602]
[1735723752294,7.80682229,188.37,188.3,10.46702229]
[1735723753386,2.6594,188.36,188.3,10.46702229]
[1735723753694,1.5142,188.4,188.34,7.80682229]
[1735723753993,8.4142,188.4,188.36,7.80682229]
[1735723754695,8.4142,188.4,188.36,10.46612229]
[1735723755894,6.9,188.4,188.39,10.46572229]
[1735723758096,6.9,188.4,188.39,7.80682229]
[1735723759098,6.9,188.4,188.39,10.46572229]
[1735723759498,6.9,188.4,188.39,7.80682229]
[1735723759698,6.9,188.4,188.37,7.80682229]
[1735723760602,6.9,188.4,188.39,7.80682229]
[1735723761099,6.9,188.4,188.37,7.80682229]
[1735723761495,6.9,188.4,188.39,7.80682229]
[1735723761900,6.9,188.4,188.39,10.46572229]
[1735723762203,6.9,188.4,188.39,2.6589]
[1735723762399,6.9,188.4,188.39,10.46572229]
[1735723764101,1.635,188.47,188.44,2.6581]
[1735723764401,1.5422,188.48,188.45,7.80682229]
[1735723764603,1.5422,188.48,188.45,10.46482229]
[1735723764801,14.32272298,188.51,188.45,7.80682229]
[1735723765202,13.39571975,188.51,188.47,7.80682229]
[1735723765404,3.40416279,188.51,188.47,7.80682229]
[1735723765996,0.86,188.51,188.48,2.6577]
[1735723766503,0.86,188.51,188.47,7.80682229]
[1735723766805,0.86,188.51,188.49,2.6575]
[1735723767999,0.86,188.51,188.36,7.3472629]
[1735723768203,7.80682229,188.48,188.41,7.80682229]
[1735723768601,7.80682229,188.48,188.41,10.46542229]
[1735723768897,7.80682229,188.46,188.39,7.80682229]
[1735723769101,1.6103,188.45,188.39,7.80682229]
[1735723769505,4.2684,188.45,188.39,10.46562229]
[1735723769897,1.4838,188.44,188.39,10.46562229]
[1735723770305,1.4838,188.44,188.39,2.6588]
[1735723771603,1.4838,188.44,188.4,2.6588]
[1735723772004,1.4838,188.44,188.37,3.36]
[1735723773209,1.4838,188.44,188.39,2.6589]
[1735723774609,1.4838,188.44,188.4,2.6587]
[1735723775209,1.4838,188.44,188.37,3.36]
[1735723775412,1.4838,188.44,188.41,2.6586]
[1735723775608,1.4838,188.44,188.37,3.36]
[1735723776109,1.4838,188.44,188.41,2.6586]
[1735723777714,1.6103,188.45,188.43,2.6584]
[1735723778609,1.5714,188.47,188.43,2.6584]
[1735723779009,4.9739,188.49,188.41,12.19814257]
[1735723779209,1.6139,188.49,188.41,12.19814257]
[1735723780011,1.6139,188.49,188.45,2.658]
[1735723780512,1.6139,188.49,188.41,12.19814257]
[1735723783315,1.6139,188.49,188.45,2.658]
[1735723785612,4.2715,188.49,188.43,2.6582]
[1735723786719,1.6139,188.49,188.44,2.6581]
[1735723786920,1.6139,188.49,188.41,12.19814257]
[1735723787329,1.6139,188.49,188.46,2.6579]
[1735723787620,1.6139,188.49,188.41,12.19814257]
[1735723788030,1.6139,188.49,188.46,2.6578]
[1735723788924,1.6061,188.5,188.44,12.19814257]
[1735723789828,1.6061,188.5,188.46,2.6578]
[1735723791631,1.6061,188.5,188.44,12.19814257]
[1735723791832,1.6061,188.5,188.47,2.6577]
[1735723792723,1.6061,188.5,188.48,2.6576]
[1735723792924,1.6061,188.5,188.49,7.79997542]
[1735723793124,1.6203,188.52,188.49,7.79997542]
[1735723793325,3.133,188.54,188.43,3.4]
[1735723793533,3.133,188.54,188.52,7.79997542]
[1735723793726,1.5393,188.54,188.52,10.45697542]
[1735723793923,1.5393,188.54,188.52,7.79997542]
[1735723794130,5.61032394,188.58,188.52,7.79997542]
[1735723794326,1.6223,188.58,188.54,7.79997542]
[1735723795030,4.2786,188.58,188.54,7.79997542]
[1735723795629,4.2786,188.58,188.53,2.6568]
[1735723795936,2.6565,188.57,188.53,7.79997542]
[1735723797035,5.61032394,188.58,188.53,10.45687542]
[1735723797233,5.61032394,188.58,188.53,7.79997542]
[1735723797532,5.61032394,188.58,188.48,3.4]
[1735723797533,1.6223,188.58,188.55,7.79997542]
[1735723798728,1.6223,188.58,188.57,7.79997542]
[1735723798928,1.6223,188.58,188.57,10.45637542]
[1735723799637,1.6223,188.58,188.57,7.79997542]
[1735723800130,6.64362394,188.63,188.58,2.6563]
[1735723800336,7.14792394,188.64,188.61,7.79997542]
[1735723800530,3.1599,188.64,188.62,2.6557]
[1735723800931,3.1599,188.64,188.62,7.79997542]
[1735723801131,58.24860515,188.66,188.62,7.79997542]
[1735723801329,58.24860515,188.66,188.59,2.656]
[1735723801539,58.24860515,188.66,188.57,3.4]
[1735723801540,58.24860515,188.66,188.64,7.79997542]
[1735723802040,2.6548,188.69,188.64,7.79997542]
[1735723802241,3.1599,188.7,188.66,7.79997542]
[1735723802538,58.24860515,188.71,188.68,7.79997542]
[1735723802936,58.24860515,188.71,188.66,7.79997542]
[1735723803137,7.79997542,188.73,188.66,7.79997542]
[1735723803333,7.79997542,188.73,188.62,3.32]
[1735723803543,7.79997542,188.71,188.64,7.79997542]
[1735723804041,7.79997542,188.69,188.62,7.79997542]
[1735723804342,1.5706,188.68,188.62,7.79997542]
[1735723804539,2.6553,188.65,188.58,3.32]
[1735723804734,7.79997542,188.67,188.47,55.24]
[1735723804939,7.79997542,188.67,188.6,7.79997542]
[1735723804940,3.2125,188.66,188.6,7.79997542]
[1735723806043,3.2125,188.66,188.55,3.32]
[1735723806243,3.2125,188.66,188.6,7.79997542]
[1735723806442,6.5325,188.66,188.6,7.79997542]
[1735723806845,6.5325,188.66,188.62,7.79997542]
[1735723807339,2.6554,188.65,188.6,7.79997542]
[1735723807534,7.79997542,188.65,188.55,3.32]
[1735723807734,3.2125,188.66,188.51,3.32]
[1735723807735,2.6559,188.61,188.51,3.32]
[1735723807934,7.79997542,188.63,188.56,7.79997542]
[1735723808238,3.98612893,188.65,188.58,7.79997542]
[1735723808443,7.79997542,188.65,188.58,7.79997542]
[1735723808647,7.79997542,188.63,188.58,7.79997542]
[1735723808946,7.79997542,188.63,188.55,7.79997542]
[1735723809147,7.79997542,188.61,188.55,7.79997542]
[1735723810235,7.19909699,188.66,188.52,15.4973141]
[1735723810236,12.1773141,188.64,188.52,15.4973141]
[1735723810434,2.656,188.6,188.55,2.6567]
[1735723810840,12.1773141,188.64,188.52,12.1773141]
[1735723811142,16.16391109,188.64,188.52,12.1773141]
[1735723811444,3.98659699,188.63,188.52,12.1773141]
[1735723811637,3.32,188.62,188.52,12.1773141]
[1735723811843,12.1773141,188.61,188.46,2.43519341]
[1735723812040,12.1773141,188.58,188.46,14.61250751]
[1735723812244,9.1257,188.57,188.51,2.6572]
[1735723812546,9.1257,188.57,188.46,14.61250751]
[1735723812848,2.6567,188.56,188.5,2.6573]
[1735723813251,6.4692,188.57,188.5,2.6573]
[1735723813744,2.6568,188.54,188.49,2.6575]
[1735723814947,10.45716873,188.57,188.49,2.6575]
[1735723815250,10.4572269,188.57,188.49,2.6575]
[1735723816051,6.4692,188.57,188.49,2.6575]
[1735723816447,2.6568,188.54,188.49,2.6575]
[1735723816844,6.4692,188.57,188.47,2.6577]
[1735723817044,2.6572,188.51,188.43,12.1773141]
[1735723818448,2.6572,188.51,188.46,2.6579]
[1735723819050,12.1773141,188.55,188.43,12.1773141]
[1735723819247,1.5208,188.54,188.43,12.1773141]
[1735723820155,2.6575,188.49,188.45,2.6581]
[1735723820351,2.6575,188.49,188.43,12.1773141]
[1735723820545,3.32,188.52,188.43,12.1773141]
[1735723820748,2.6577,188.48,188.43,12.1773141]
[1735723821551,2.6577,188.48,188.43,14.8356141]
[1735723821750,3.32,188.52,188.43,14.8356141]
[1735723821953,2.6578,188.47,188.4,12.1773141]
[1735723822552,2.6578,188.47,188.42,2.6584]
[1735723822749,2.658,188.46,188.42,2.6584]
[1735723823052,15.4973141,188.52,188.42,2.6584]
[1735723823246,2.6578,188.48,188.42,2.6584]
[1735723823447,15.4973141,188.52,188.42,2.6584]
[1735723823645,15.4973141,188.52,188.43,2.6582]
[1735723823846,2.6574,188.5,188.43,12.1773141]
[1735723824445,2.6574,188.5,188.45,2.6581]
[1735723824650,2.6574,188.5,188.43,12.1773141]
[1735723826157,2.6577,188.48,188.43,14.8357141]
[1735723826459,3.32,188.52,188.43,2.6584]
[1735723826757,2.6579,188.47,188.43,2.6584]
[1735723827851,2.6576,188.49,188.42,2.6585]
[1735723828054,1.5114,188.48,188.42,2.6585]
[1735723828857,2.6579,188.47,188.43,2.6583]
[1735723829056,1.5114,188.48,188.43,2.6583]
[1735723829557,4.1691,188.48,188.43,2.6583]
[1735723832255,2.6579,188.47,188.43,2.6583]
[1735723834260,2.6581,188.45,188.41,2.6586]
[1735723834461,7.80583611,188.46,188.4,7.80583611]
[1735723835256,2.6583,188.44,188.4,10.46453611]